bitfinex-derivatives/quotes_SOLF0:USTF0_20241021
["timestamp","ask_amount","ask_price","bid_price","bid_amount"]
[1729470057650,5.9,169.71,169.62,5.9]
[1729470058146,8.8466,169.71,169.62,5.9]
[1729470058653,5.9,169.71,169.69,2.9468]
[1729470058853,5.9,169.71,169.69,2.96851241]
[1729470059049,5.9,169.71,169.63,1.47420674]
[1729470059258,10.3414,169.75,169.7,2.9466]
[1729470059449,10.3414,169.75,169.69,2.96438415]
[1729470059649,10.3414,169.75,169.62,7.37430716]
[1729470059650,10.3414,169.75,169.62,5.9]
[1729470059847,10.3414,169.75,169.64,1.47420497]
[1729470060148,10.3414,169.75,169.63,1.47420497]
[1729470060353,7.3954,169.75,169.64,1.47415807]
[1729470060649,7.3954,169.75,169.63,1.47420497]
[1729470060650,5.9,169.75,169.63,1.47420497]
[1729470060855,1.4899,169.82,169.64,2.94823756]
[1729470061052,5.9,169.81,169.65,8.84337979]
[1729470061254,1.4899,169.82,169.66,2.94817979]
[1729470061555,1.4899,169.82,169.67,10.25797979]
[1729470061556,5.9,169.81,169.67,10.25797979]
[1729470061754,5.9,169.81,169.68,5.87267979]
[1729470061958,5.9,169.81,169.68,5.88849059]
[1729470062665,5.9,169.81,169.68,2.96399059]
[1729470062855,5.9,169.81,169.64,1.47411877]
[1729470063050,23.59,169.81,169.64,1.47411877]
[1729470064162,2.947,169.71,169.67,2.9475]
[1729470064463,5.9,169.71,169.64,1.47411877]
[1729470064652,2.9472,169.7,169.66,2.9476]
[1729470065056,5.9,169.71,169.64,1.47411877]
[1729470065257,5.9,169.71,169.64,4.42221877]
[1729470065258,2.9476,169.68,169.64,4.42221877]
[1729470065458,2.9476,169.68,169.64,1.47411877]
[1729470065661,1.4312,169.7,169.64,1.47411877]
[1729470065867,2.9473,169.69,169.65,2.9478]
[1729470067162,2.9473,169.69,169.64,1.47411877]
[1729470067370,1.4312,169.7,169.64,1.47411877]
[1729470067568,5.9,169.71,169.64,1.47411877]
[1729470067871,1.501,169.75,169.64,1.47411877]
[1729470068066,5.9,169.74,169.64,1.47411877]
[1729470068267,5.9,169.74,169.71,2.9468]
[1729470068467,5.9,169.74,169.68,2.89655749]
[1729470068468,8.8464,169.74,169.68,2.89655749]
[1729470068761,5.9,169.74,169.64,1.47411877]
[1729470068973,2.9432,169.93,169.65,76.80529079]
[1729470069264,1.501,169.87,169.66,11.17674608]
[1729470069467,23.59,169.86,169.66,1.47355672]
[1729470069666,1.3928,169.85,169.67,4.29089798]
[1729470069872,1.3928,169.85,169.68,11.6646135]
[1729470070067,4.3672,169.84,169.68,11.6644547]
[1729470070260,4.3672,169.84,169.69,1.47376606]
[1729470070461,1.4225,169.84,169.69,1.47355672]
[1729470070661,1.4225,169.84,169.7,2.92735672]
[1729470070863,19.1125,169.84,169.65,10.19295589]
[1729470071064,19.1125,169.84,169.66,2.94794838]
[1729470071266,19.1125,169.84,169.65,5.74675589]
[1729470071267,2.9459,169.77,169.69,2.9471]
[1729470071474,7.3861,169.76,169.65,1.4538]
[1729470071667,5.9,169.75,169.65,1.4538]
[1729470071970,5.9,169.75,169.66,2.94818788]
[1729470072176,5.9,169.75,169.73,2.9464]
[1729470074574,5.9,169.75,169.66,1.47405462]
[1729470074769,5.9,169.75,169.64,2.96025698]
[1729470075069,4.3906,169.74,169.67,2.9474]
[1729470075571,2.9467,169.73,169.66,2.9478]
[1729470075873,1.4441,169.74,169.62,2.98208872]
[1729470076063,2.9473,169.69,169.61,2.9485]
[1729470076264,5.9,169.68,169.58,1.47466852]
[1729470076476,1.4441,169.74,169.59,2.94924554]
[1729470076477,5.9,169.69,169.59,2.94924554]
[1729470076772,5.9,169.69,169.57,2.88184053]
[1729470076773,5.9,169.69,169.66,2.9477]
[1729470077275,5.9,169.69,169.59,2.94926062]
[1729470077474,5.9,169.69,169.56,1.5014]
[1729470077679,5.9,169.69,169.57,7.24347262]
[1729470077973,5.9,169.69,169.58,2.94936924]
[1729470078183,5.9,169.69,169.59,2.94936924]
[1729470078376,5.9,169.69,169.6,8.84936924]
[1729470078578,5.9,169.69,169.61,1.47468462]
[1729470078880,5.9,169.69,169.6,5.9]
[1729470079077,5.9,169.69,169.61,1.47453532]
[1729470079277,5.9,169.69,169.6,5.9]
[1729470079472,5.9,169.69,169.61,1.47453493]
[1729470079672,5.9,169.69,169.6,5.9]
[1729470079874,5.9,169.69,169.61,1.47454361]
[1729470080074,5.9,169.69,169.68,2.9474]
[1729470080480,5.9,169.73,169.6,5.9]
[1729470080774,5.9,169.73,169.62,4.34310058]
[1729470080981,5.9,169.73,169.63,1.47445029]
[1729470081180,5.9,169.73,169.62,1.3942]
[1729470081573,2.947,169.71,169.62,1.3942]
[1729470081773,2.947,169.71,169.64,2.9481]
[1729470081981,2.947,169.71,169.62,1.3942]
[1729470081982,5.9,169.73,169.58,10.14516039]
[1729470082181,5.9,169.73,169.63,2.9482]
[1729470082481,5.9,169.73,169.6,1.47463055]
[1729470082672,5.9,169.73,169.61,2.9486]
[1729470082872,5.9,169.73,169.58,1.4192]
[1729470083273,2.9474,169.69,169.62,2.9484]
[1729470083475,7.323,169.68,169.62,2.9484]
[1729470083881,7.323,169.68,169.58,1.4192]
[1729470084374,1.423,169.68,169.58,1.4192]
[1729470084574,7.323,169.68,169.67,2.9476]
[1729470085481,7.323,169.68,169.59,4.23862086]
[1729470085482,7.323,169.68,169.6,2.94904844]
[1729470085678,7.323,169.68,169.61,2.94904844]
[1729470085876,7.323,169.68,169.62,1.47452422]
[1729470086072,7.323,169.68,169.59,4.23879774]
[1729470086278,7.323,169.68,169.6,2.94906862]
[1729470086476,7.323,169.68,169.61,1.47450438]
[1729470086680,7.323,169.68,169.58,1.4192]
[1729470086981,10.2706,169.68,169.59,1.47471349]
[1729470087183,10.2706,169.68,169.58,1.4192]
[1729470087380,10.2706,169.68,169.57,2.88408525]
[1729470087579,10.2706,169.68,169.58,1.47477268]
[1729470087776,7.323,169.68,169.57,2.95594137]
[1729470088082,7.323,169.68,169.58,1.47478273]
[1729470088477,7.323,169.68,169.59,1.47474119]
[1729470088676,7.323,169.68,169.63,2.9483]
[1729470089576,7.323,169.68,169.58,1.47467693]
[1729470089779,7.323,169.68,169.5,1.3805]
[1729470089971,1.423,169.68,169.51,13.09244602]
[1729470090280,5.9,169.67,169.52,7.19244602]
[1729470090480,5.9,169.67,169.53,5.71755522]
[1729470090681,5.9,169.67,169.54,5.71755522]
[1729470090885,5.9,169.67,169.55,5.71755522]
[1729470091175,5.9,169.67,169.56,16.01494602]
[1729470091381,5.9,169.67,169.62,2.9483]
[1729470092876,5.9,169.67,169.6,2.92206559]
[1729470093172,5.9,169.67,169.51,4.23830256]
[1729470093379,5.9,169.67,169.52,7.18805982]
[1729470093584,2.9481,169.64,169.53,2.94975726]
[1729470093780,5.9,169.67,169.54,2.94975726]
[1729470093977,5.9,169.67,169.55,1.47487863]
[1729470094182,5.9,169.66,169.56,2.94984137]
[1729470094379,5.9,169.66,169.51,2.8047]
[1729470094380,5.9,169.66,169.57,1.47487863]
[1729470094680,5.9,169.66,169.6,2.9488]
[1729470094981,5.9,169.66,169.59,2.99245889]
[1729470095173,5.9,169.66,169.55,11.61312676]
[1729470095372,5.9,169.66,169.56,2.94965055]
[1729470095681,2.948,169.65,169.59,2.9488]
[1729470095883,5.9,169.66,169.55,5.9]
[1729470096182,5.9,169.66,169.56,1.47492056]
[1729470096384,2.9482,169.64,169.58,2.949]
[1729470096576,5.9,169.66,169.55,5.9]
[1729470096979,8.8479,169.66,169.59,2.9488]
[1729470097180,5.9,169.66,169.59,5.91960053]
[1729470097384,5.9,169.66,169.59,2.9488]
[1729470097586,2.948,169.65,169.59,5.85852637]
[1729470097775,2.948,169.65,169.59,2.90972637]
[1729470097979,5.9,169.66,169.56,1.47489455]
[1729470098287,2.9484,169.63,169.52,5.9]
[1729470098586,2.9484,169.63,169.57,2.9493]
[1729470100576,2.9484,169.63,169.58,2.9491]
[1729470100777,2.949,169.59,169.52,2.95007318]
[1729470100985,2.949,169.59,169.51,12.94334572]
[1729470100986,5.92,169.61,169.55,2.9497]
[1729470101285,5.92,169.6,169.51,2.8047]
[1729470103485,5.92,169.6,169.56,2.9494]
[1729470104382,5.92,169.6,169.51,2.8047]
[1729470104589,5.92,169.6,169.52,1.47516321]
[1729470104787,5.92,169.6,169.51,4.27986791]
[1729470104987,5.92,169.6,169.52,1.47517619]
[1729470105183,5.92,169.6,169.56,2.9493]
[1729470106785,5.92,169.6,169.52,1.47497933]
[1729470107086,5.92,169.6,169.57,2.9493]
[1729470110288,5.92,169.6,169.5,4.34977182]
[1729470110486,5.92,169.6,169.58,2.9491]
[1729470111183,2.9491,169.59,169.55,2.9495]
[1729470111485,5.92,169.6,169.5,4.34977182]
[1729470111688,5.92,169.6,169.5,5.82506594]
[1729470111891,5.92,169.6,169.53,2.95]
[1729470112186,5.92,169.6,169.5,4.34977182]
[1729470112383,8.869,169.6,169.55,2.9495]
[1729470112590,8.869,169.6,169.5,4.34977182]
[1729470112793,5.92,169.6,169.5,4.34977182]
[1729470113195,5.92,169.6,169.51,1.47514992]
[1729470113487,5.92,169.6,169.5,2.92971782]
[1729470113680,2.9609,169.59,169.43,4.3553]
[1729470113884,2.9609,169.59,169.44,2.95117698]
[1729470114079,2.9609,169.59,169.45,1.47558849]
[1729470114290,2.9609,169.59,169.43,8.77772191]
[1729470114291,2.9498,169.55,169.49,2.9506]
[1729470114488,5.88,169.54,169.45,1.47558849]
[1729470114890,5.88,169.54,169.44,1.47558849]
[1729470115290,2.9498,169.55,169.44,1.47558849]
[1729470115591,5.88,169.54,169.44,1.47558849]
[1729470115894,5.88,169.54,169.5,2.9505]
[1729470116389,8.8299,169.54,169.43,13.18213342]
[1729470117093,8.8299,169.54,169.49,2.9507]
[1729470119287,2.9501,169.53,169.49,2.9507]
[1729470119998,2.9609,169.59,169.43,7.30213342]
[1729470119999,1.4672,169.59,169.43,7.30213342]
[1729470120196,1.3993,169.66,169.47,5.88]
[1729470120397,5.88,169.63,169.47,5.88]
[1729470120699,5.88,169.63,169.55,2.9495]
[1729470120896,2.9489,169.6,169.48,5.9018]
[1729470121193,5.88,169.63,169.55,2.9496]
[1729470121399,5.88,169.63,169.56,2.97786818]
[1729470121604,5.88,169.62,169.49,1.47541351]
[1729470121897,5.88,169.62,169.56,1.3779]
[1729470122096,5.88,169.62,169.56,4.25716523]
[1729470122300,5.88,169.62,169.58,2.949]
[1729470122494,5.88,169.62,169.58,5.88899433]
[1729470123098,5.88,169.62,169.58,2.93999433]
[1729470123394,5.88,169.63,169.59,2.949]
[1729470123595,5.88,169.63,169.6,2.96625482]
[1729470124199,8.8283,169.63,169.6,2.96625482]
[1729470125502,5.88,169.63,169.6,2.96625482]
[1729470125699,5.88,169.63,169.56,1.3779]
[1729470126009,2.9486,169.62,169.58,2.9491]
[1729470126296,5.88,169.63,169.56,4.31570717]
[1729470126497,5.88,169.63,169.6,2.9487]
[1729470126697,5.88,169.63,169.6,5.89683494]
[1729470126892,63.7,169.68,169.6,2.94813494]
[1729470127095,5.88,169.69,169.57,8.7743]
[1729470127298,5.88,169.7,169.57,8.7743]
[1729470127603,8.8271,169.7,169.6,2.9486]
[1729470127897,8.8271,169.7,169.57,8.7743]
[1729470128496,8.8271,169.7,169.65,2.9478]
[1729470128701,2.9471,169.7,169.57,8.7743]
[1729470128890,8.8269,169.71,169.57,8.7743]
[1729470129601,164.44980928,169.87,169.75,2.946]
[1729470129804,164.44980928,169.87,169.58,69.6183]
[1729470129805,1.3794,169.84,169.68,5.88]
[1729470129992,5.88,169.83,169.69,4.4794]
[1729470130198,5.88,169.83,169.69,7.42302098]
[1729470132503,2.9455,169.79,169.73,2.9464]
[1729470132705,5.88,169.83,169.69,7.42302098]
[1729470133599,5.88,169.83,169.76,2.9459]
[1729470133600,2.9451,169.82,169.76,2.9459]
[1729470133799,5.88,169.83,169.69,7.42302098]
[1729470134214,8.8248,169.83,169.73,2.9465]
[1729470134407,8.8248,169.83,169.69,7.42302098]
[1729470136299,5.88,169.83,169.69,7.42302098]
[1729470136505,2.9455,169.8,169.74,2.9463]
[1729470136812,2.9455,169.8,169.69,7.42302098]
[1729470136998,2.9452,169.81,169.69,7.42302098]
[1729470137202,2.9452,169.81,169.75,2.9461]
[1729470138511,5.88,169.83,169.69,7.42302098]
[1729470138705,146.75980928,169.87,169.69,7.42302098]
[1729470138908,63.72,169.87,169.69,7.42302098]
[1729470139212,8.8243,169.86,169.8,2.9452]
[1729470139405,8.8243,169.86,169.8,5.9018235]
[1729470139611,8.8243,169.86,169.8,2.9452]
[1729470139915,8.8243,169.86,169.81,2.9451]
[1729470140213,5.88,169.86,169.8,2.93775959]
[1729470140408,5.88,169.86,169.77,1.3777]
[1729470140617,5.88,169.86,169.81,2.9451]
[1729470140818,5.88,169.86,169.82,2.87645187]
[1729470141317,2.9445,169.85,169.82,2.87645187]
[1729470141522,2.9445,169.85,169.8,2.9453]
[1729470141824,2.9445,169.85,169.8,5.91060339]
[1729470142119,5.88,169.86,169.8,5.91060339]
[1729470142318,8.8243,169.86,169.8,5.91060339]
[1729470145121,2.9445,169.85,169.8,5.91060339]
[1729470145415,5.88,169.86,169.8,2.96530339]
[1729470145621,2.9448,169.84,169.77,1.3777]
[1729470146816,5.88,169.86,169.78,2.90755128]
[1729470147021,5.88,169.86,169.71,2.9593]
[1729470147223,2.9454,169.8,169.75,2.9462]
[1729470147623,5.88,169.81,169.71,2.9593]
[1729470147812,2.9458,169.78,169.73,2.9464]
[1729470148323,2.9459,169.77,169.72,2.9467]
[1729470148521,1.3967,169.8,169.6,63.64]
[1729470148522,5.88,169.76,169.69,2.94362098]
[1729470148724,5.88,169.76,169.69,2.98745732]
[1729470148922,5.88,169.76,169.72,2.9466]
[1729470149223,5.88,169.76,169.73,2.88781645]
[1729470150925,2.9458,169.78,169.73,2.88781645]
[1729470151122,5.88,169.77,169.73,2.88781645]
[1729470151421,2.9454,169.8,169.75,2.9461]
[1729470151721,54.39586548,170.19,169.67,5.88]
[1729470151722,7.2455,169.9,169.74,5.88]
[1729470152024,7.2455,169.9,169.75,10.3233]
[1729470152820,24.9355,169.9,169.75,1.4357]
[1729470153019,24.9355,169.9,169.76,2.98397674]
[1729470153218,2.9451,169.82,169.77,2.9458]
[1729470153424,5.88,169.81,169.77,2.9458]
[1729470153825,5.88,169.81,169.8,2.9453]
[1729470154127,5.88,169.81,169.75,1.4357]
[1729470154319,5.88,169.81,169.75,4.37840051]
[1729470155122,5.88,169.81,169.77,2.9458]
[1729470155524,5.88,169.81,169.75,4.37840051]
[1729470156723,8.8252,169.81,169.76,2.9459]
[1729470157128,5.88,169.81,169.75,4.37840051]
[1729470157326,2.9453,169.8,169.75,7.32460051]
[1729470157628,5.88,169.81,169.75,4.37840051]
[1729470158224,2.945,169.83,169.78,2.9456]
[1729470158420,5.88,169.84,169.75,4.37840051]
[1729470158628,5.88,169.84,169.76,2.8322]
[1729470158930,8.8248,169.84,169.79,2.9454]
[1729470159125,2.9448,169.84,169.79,2.9454]
[1729470159325,8.8248,169.84,169.79,2.9454]
[1729470159629,5.88,169.84,169.76,2.8322]
[1729470160824,5.88,169.84,169.8,2.9452]
[1729470161030,8.8243,169.86,169.76,2.8322]
[1729470161426,8.8243,169.86,169.8,2.9452]
[1729470161822,8.8243,169.86,169.76,2.8322]
[1729470161823,5.88,169.86,169.76,2.8322]
[1729470162024,2.9447,169.84,169.79,2.9454]
[1729470163224,2.945,169.82,169.78,2.9456]
[1729470163426,2.945,169.82,169.75,10.25840051]
[1729470164227,1.488,169.85,169.75,8.82270051]
[1729470164423,2.9455,169.79,169.75,2.94270051]
[1729470164629,5.88,169.81,169.71,5.88]
[1729470164832,2.9454,169.8,169.76,2.946]
[1729470165033,5.88,169.81,169.76,2.94460733]
[1729470165232,5.88,169.81,169.71,5.88]
[1729470165431,5.88,169.83,169.71,8.85290103]
[1729470166227,5.88,169.84,169.79,2.9455]
[1729470166424,5.88,169.84,169.8,2.87387309]
[1729470166625,5.88,169.84,169.71,8.85290103]
[1729470166927,1.455,169.89,169.71,8.85290103]
[1729470167136,1.455,169.89,169.72,5.8934]
[1729470167137,5.88,169.88,169.72,5.8934]
[1729470167532,8.824,169.88,169.83,2.9447]
[1729470167732,8.824,169.88,169.84,2.93718775]
[1729470168929,8.824,169.88,169.78,4.2371]
[1729470169135,2.9441,169.87,169.83,2.9447]
[1729470169329,5.88,169.88,169.83,2.92716824]
[1729470169530,5.88,169.88,169.81,2.945]
[1729470169731,2.9446,169.85,169.81,2.945]
[1729470170333,2.9446,169.85,169.81,5.88690281]
[1729470171035,2.9446,169.84,169.81,5.88690281]
[1729470171733,5.88,169.88,169.81,2.94190281]
[1729470171937,2.9445,169.85,169.78,4.2371]
[1729470172328,2.9445,169.85,169.81,2.945]
[1729470172532,2.9445,169.85,169.81,5.93711424]
[1729470172729,2.9445,169.85,169.81,2.945]
[1729470173338,2.9445,169.85,169.81,5.95390897]
[1729470173532,2.9448,169.84,169.8,2.9453]
[1729470173741,2.9448,169.84,169.8,2.97443557]
[1729470173938,2.9448,169.84,169.77,5.88]
[1729470174442,2.9448,169.84,169.79,2.9454]
[1729470175139,2.9448,169.83,169.79,2.9454]
[1729470175435,5.88,169.88,169.77,2.9457]
[1729470175634,1.3748,169.87,169.73,10.2244]
[1729470176234,2.945,169.82,169.77,2.9457]
[1729470176729,2.945,169.82,169.73,10.2244]
[1729470177335,5.88,169.83,169.73,10.2244]
[1729470177539,1.3748,169.87,169.73,10.2244]
[1729470177740,5.88,169.86,169.73,10.2244]
[1729470178342,2.9445,169.85,169.73,10.2244]
[1729470178939,7.2548,169.87,169.73,10.2244]
[1729470178940,2.9443,169.87,169.82,2.9449]
[1729470179142,8.8243,169.87,169.82,5.86357436]
[1729470180241,5.88,169.87,169.82,5.86357436]
[1729470180448,2.9443,169.86,169.82,5.86357436]
[1729470180944,1.455,169.89,169.85,2.9443]
[1729470180945,4.3988,169.89,169.85,2.9443]
[1729470181144,5.8828,170.03,169.78,5.88]
[1729470181446,5.88,169.96,169.78,5.88]
[1729470181647,2.943,169.94,169.78,5.88]
[1729470181941,5.88,169.96,169.78,5.88]
[1729470182447,17.69,170.03,169.78,5.88]
[1729470182638,5.88,169.97,169.93,2.943]
[1729470182840,5.88,169.97,169.87,5.88]
[1729470183042,2.9423,169.98,169.92,2.9431]
[1729470183336,2.9423,169.98,169.89,1.4699]
[1729470183541,5.88,169.99,169.89,1.4699]
[1729470183940,2.9913,170.04,169.89,1.4699]
[1729470184245,5.88,170.03,169.89,1.4699]
[1729470185850,2.9417,170.01,169.95,2.9426]
[1729470186045,63.62,170.06,169.92,5.88]
[1729470186349,65.0361,170.06,169.92,5.88]
[1729470186550,5.88,170.05,169.92,5.88]
[1729470186941,2.9414,170.03,169.97,2.9423]
[1729470187250,5.88,170.05,169.98,2.98441477]
[1729470187452,5.88,170.05,169.92,5.88]
[1729470187655,2.9418,170.01,169.95,2.9426]
[1729470188245,2.9413,170.04,169.95,2.9426]
[1729470188448,5.88,170.05,169.92,5.88]
[1729470188946,2.9418,170.01,169.95,2.9427]
[1729470190149,5.88,170.05,169.92,5.88]
[1729470190943,2.9414,170.03,169.97,2.9423]
[1729470191151,5.88,170.05,169.97,2.97781932]
[1729470191456,5.88,170.05,169.93,5.88]
[1729470191756,2.9416,170.02,169.96,2.9425]
[1729470191956,2.9416,170.02,169.96,5.81521981]
[1729470192149,5.88,170.05,169.96,2.87271981]
[1729470192354,5.88,170.05,169.93,5.88]
[1729470192857,2.9417,170.01,169.95,2.9426]
[1729470193059,5.88,170.05,169.89,1.4699]
[1729470193265,5.88,170.05,169.9,5.88]
[1729470193453,2.9418,170.01,169.94,2.9427]
[1729470193652,2.9418,170.01,169.9,5.88]
[1729470194354,5.88,170.05,169.9,5.88]
[1729470195060,2.9416,170.02,169.96,2.9425]
[1729470195351,5.88,170.05,169.96,2.93029959]
[1729470195551,5.88,170.05,169.9,5.88]
[1729470195758,2.9417,170.01,169.95,2.9426]
[1729470196057,2.9417,170.01,169.9,5.88]
[1729470196254,5.88,170.05,169.9,5.88]
[1729470196561,23.57,170.05,169.89,1.4699]
[1729470196751,26.58243424,170.05,169.89,1.4699]
[1729470196952,2.9427,169.96,169.9,2.9434]
[1729470197153,2.9427,169.96,169.89,1.4699]
[1729470197555,2.9429,169.94,169.89,1.4699]
[1729470197762,5.86,169.99,169.89,1.4699]
[1729470197961,5.86,169.99,169.89,4.4135]
[1729470198162,2.9428,169.95,169.89,1.4699]
[1729470198856,5.86,169.99,169.89,1.4699]
[1729470199058,5.86,169.99,169.88,1.4475]
[1729470199258,1.3807,169.98,169.88,1.4475]
[1729470199654,2.943,169.94,169.89,2.9437]
[1729470199857,1.3807,169.98,169.88,1.4475]
[1729470200055,4.1968,169.98,169.88,1.4475]
[1729470200458,4.1968,169.98,169.87,2.87472048]
[1729470200459,17.69,169.97,169.87,2.87472048]
[1729470200764,17.69,169.97,169.81,5.86]
[1729470201066,17.69,169.97,169.86,2.9442]
[1729470201555,17.69,169.97,169.84,2.9446]
[1729470201556,2.9432,169.93,169.84,2.9446]
[1729470201758,5.86,169.92,169.81,8.81960723]
[1729470202060,2.9434,169.91,169.84,2.9446]
[1729470202364,5.86,169.92,169.81,8.81960723]
[1729470202764,2.9437,169.9,169.85,2.9443]
[1729470202963,5.86,169.92,169.81,8.81960723]
[1729470203159,2.9436,169.91,169.85,2.9443]
[1729470203354,5.86,169.92,169.81,8.81960723]
[1729470204169,2.9436,169.9,169.81,8.81960723]
[1729470204468,5.86,169.92,169.81,2.95960723]
[1729470204664,5.86,169.92,169.79,8.7152]
[1729470204864,17.69,169.97,169.79,8.7152]
[1729470205064,2.9435,169.91,169.86,2.9441]
[1729470205265,5.86,169.96,169.86,2.93332569]
[1729470205468,23.55,169.96,169.79,8.7152]
[1729470205661,23.55,169.96,169.84,2.9446]
[1729470205862,23.55,169.96,169.84,5.85318183]
[1729470206068,26.44482989,169.96,169.84,2.90858183]
[1729470206370,2.9445,169.86,169.79,8.7152]
[1729470206567,5.86,169.88,169.79,8.7152]
[1729470206763,2.9443,169.87,169.83,2.9447]
[1729470206964,2.9443,169.87,169.83,5.84660123]
[1729470207172,5.86,169.88,169.83,5.84660123]
[1729470207468,5.86,169.88,169.83,2.90190123]
[1729470207667,5.86,169.88,169.79,8.7152]
[1729470207870,2.9444,169.86,169.79,8.7152]
[1729470208572,5.86,169.92,169.79,8.7152]
[1729470208760,2.9441,169.88,169.79,8.7152]
[1729470208962,17.69,169.97,169.79,8.7152]
[1729470209166,2.9438,169.89,169.79,8.7152]
[1729470209471,5.86,169.9,169.86,2.9442]
[1729470209672,5.86,169.9,169.87,2.99847905]
[1729470210169,5.86,169.9,169.79,8.7152]
[1729470210366,8.8037,169.9,169.79,8.7152]
[1729470210576,5.86,169.9,169.83,2.9446]
[1729470210771,5.86,169.9,169.83,5.94396278]
[1729470210966,5.86,169.9,169.83,2.9446]
[1729470211269,5.86,169.9,169.83,2.87681957]
[1729470211471,2.9438,169.89,169.85,2.9445]
[1729470211667,2.9438,169.89,169.86,2.87446297]
[1729470212871,2.9438,169.89,169.85,2.9445]
[1729470213573,5.86,169.9,169.85,2.9430986]
[1729470213874,17.69,169.97,169.79,8.7152]
[1729470214074,5.86,169.96,169.79,8.7152]
[1729470214478,2.9435,169.91,169.84,2.9446]
[1729470214674,2.9435,169.91,169.84,2.98110257]
[1729470214874,2.9435,169.91,169.79,8.7152]
[1729470215078,2.9435,169.91,169.86,2.9441]
[1729470215377,8.8035,169.91,169.86,5.91312379]
[1729470215579,5.86,169.91,169.79,8.7152]
[1729470215783,5.86,169.91,169.84,2.9445]
[1729470215980,5.86,169.91,169.84,3.00791158]
[1729470216177,2.9439,169.89,169.82,2.9449]
[1729470216374,2.9439,169.89,169.82,2.99818963]
[1729470216674,2.9439,169.89,169.79,8.7152]
[1729470216880,2.9439,169.89,169.84,2.9445]
[1729470217077,2.9439,169.89,169.84,5.95683065]
[1729470217275,2.9439,169.89,169.84,2.9445]
[1729470217673,4.1968,169.98,169.8,5.8905]
[1729470217980,10.0568,169.98,169.89,2.9436]
[1729470218284,10.0568,169.98,169.79,8.7152]
[1729470218285,10.0568,169.98,169.84,5.86]
[1729470218581,10.0568,169.98,169.85,1.4908]
[1729470218780,27.7468,169.98,169.85,4.36348813]
[1729470218977,27.7468,169.98,169.85,1.4908]
[1729470219383,2.9431,169.93,169.85,1.4908]
[1729470219684,5.86,169.93,169.87,2.9441]
[1729470219893,2.9434,169.92,169.87,2.9441]
[1729470220388,5.86,169.93,169.84,5.86]
[1729470220389,5.86,169.93,169.88,2.89338836]
[1729470220576,5.86,169.93,169.84,5.86]
[1729470220782,5.86,169.93,169.87,2.9441]
[1729470220977,5.86,169.93,169.86,2.99000156]
[1729470221178,5.86,169.93,169.8,1.4908]
[1729470221383,2.9437,169.9,169.85,2.9443]
[1729470221585,2.9437,169.9,169.86,2.8913265]
[1729470221779,5.86,169.93,169.83,2.9448]
[1729470222086,5.86,169.93,169.83,2.9767467]
[1729470222292,5.86,169.93,169.8,1.4908]
[1729470222486,2.9436,169.91,169.86,2.9442]
[1729470222785,5.86,169.95,169.86,2.87251893]
[1729470222993,5.86,169.95,169.8,1.4908]
[1729470223190,8.8027,169.95,169.8,1.4908]
[1729470223582,8.8027,169.95,169.9,2.9436]
[1729470224284,8.8027,169.95,169.91,2.9508791]
[1729470224696,2.9432,169.92,169.91,2.9508791]
[1729470224893,5.86,169.95,169.84,5.86]
[1729470225092,5.86,169.95,169.84,8.81706543]